[Event "Marienbad A1-GM 2024"]
[Site "Marianske Lazne"]
[Date "2024.01.14"]
[Round "2.4"]
[White "Neuman, Petr"]
[Black "Stein, Robert"]
[Result "1-0"]
[ECO "C45"]
[WhiteElo "2398"]
[BlackElo "2429"]
[Annotator "RC"]
[PlyCount "151"]
[EventDate "2024.01.10"]
[EventType "tourn"]
[EventCountry "CZE"]
[SourceTitle "playchess.com"]
[Source "ChessBase"]
[SourceQuality "1"]
[TimeControl "40/5400+30:1800+30"]

1. e4 {[%emt 0:00:05]} e5 {[%emt 0:00:07]} 2. Nf3 {[%emt 0:00:07]} Nc6 {[%emt 0:00:08]} 3. d4 {[%emt 0:00:17]} exd4 {[%emt 0:00:16]} 4. Nxd4 {[%emt 0:00:04]} Bc5 {[%emt 0:00:56]} 5. Nxc6 {[%emt 0:00:09]} bxc6 {[%emt 0:03:28]} 6. Bd3 {[%emt 0:01:00]} d6 {[%emt 0:12:27]} 7. Qf3 {[%emt 0:08:11]} Qf6 {[%emt 0:05:57]} 8. Nc3 {[%emt 0:06:23]} Qxf3 {[%emt 0:08:14]} 9. gxf3 {[%emt 0:00:04]} Ne7 {[%emt 0:06:05]} 10. Be3 {[%emt 0:00:22]} Bxe3 {[%emt 0:01:48]} 11. fxe3 {[%emt 0:00:04]} f5 {[%emt 0:02:15]} 12. e5 {[%emt 0:04:07]} dxe5 {[%emt 0:05:14]} 13. Rg1 {[%emt 0:01:53]} Kf7 {[%emt 0:09:23]} 14. Bc4+ {[%emt 0:00:33]} Kf6 {[%emt 0:00:23]} 15. O-O-O {[%emt 0:03:43]} Ng6 {[%emt 0:02:50]} 16. Na4 {[%emt 0:00:55]} Nh4 {[%emt 0:01:24]} 17. f4 {[%emt 0:00:40]} Nf3 {[%emt 0:08:21]} 18. Rg3 {[%emt 0:12:10]} e4 {[%emt 0:05:55]} 19. h3 {[%emt 0:03:44]} g5 {[%emt 0:06:30]} 20. Nc5 {[%emt 0:01:26]} h6 {[%emt 0:05:57]} 21. a4 {[%emt 0:07:35]} Re8 {[%emt 0:01:52]} 22. a5 {[%emt 0:00:21]} g4 {[%emt 0:02:49]} 23. h4 {[%emt 0:06:23]} h5 {[%emt 0:00:30]} 24. Rg2 {[%emt 0:05:32]} Kg6 {[%emt 0:01:01]} 25. Rgd2 {[%emt 0:00:48]} Nxd2 {[%emt 0:00:33]} 26. Rxd2 {[%emt 0:00:03]} Kf6 {[%emt 0:00:49]} 27. Kd1 {[%emt 0:00:16]} Rb8 {[%emt 0:00:53]} 28. b3 {[%emt 0:00:15]} Ke7 {[%emt 0:00:13]} 29. Ke2 {[%emt 0:01:40]} Rd8 {[%emt 0:01:09]} 30. Rd4 {[%emt 0:00:04]} Rd6 {[%emt 0:02:06]} 31. Kf2 {[%emt 0:00:29]} Bd7 {[%emt 0:01:00]} 32. c3 {[%emt 0:00:29]} Be8 {[%emt 0:00:14]} 33. b4 {[%emt 0:00:32]} Bf7 {[%emt 0:01:06]} 34. Be2 {[%emt 0:00:05]} Rxd4 {[%emt 0:01:13]} 35. exd4 {[%emt 0:00:04]} e3+ {[%emt 0:01:59]} 36. Kxe3 {[%emt 0:01:46]} g3 {[%emt 0:00:41]} 37. Kf3 {[%emt 0:00:16]} Rg8 {[%emt 0:00:07]} 38. Kg2 {[%emt 0:00:04]} Bd5+ {[%emt 0:00:04]} 39. Kg1 {[%emt 0:00:03]} g2 {[%emt 0:00:23]} 40. c4 {[%emt 0:00:49]} Be4 {[%emt 0:00:04]} 41. Bd3 {[%emt 0:30:32]} Bxd3 {[%emt 0:30:50]} 42. Nxd3 {[%emt 0:00:04]} Kd6 {[%emt 0:02:17]} 43. Ne5 {[%emt 0:00:13]} Rg7 {[%emt 0:00:00]} 44. a6 {[%emt 0:00:00]} Rg3 {[%emt 0:00:00]} 45. Nf7+ {[%emt 0:00:00]} Ke6 {[%emt 0:00:00]} 46. Ne5 {[%emt 0:00:00]} Ra3 {[%emt 0:00:00]} 47. Nxc6 {[%emt 0:00:00]} Rxa6 {[%emt 0:00:00]} 48. d5+ {[%emt 0:00:00]} Kf6 {[%emt 0:00:00]} 49. Kxg2 {[%emt 0:00:00]} Ra2+ {[%emt 0:00:00]} 50. Kf3 {[%emt 0:00:00]} Ra3+ {[%emt 0:00:00]} 51. Ke2 {[%emt 0:00:00]} a6 {[%emt 0:00:00]} 52. Nb8 {[%emt 0:00:00]} a5 {[%emt 0:00:00]} 53. bxa5 {[%emt 0:00:00]} Rxa5 {[%emt 0:00:00]} 54. Nd7+ {[%emt 0:00:00]} Ke7 {[%emt 0:00:00]} 55. Ne5 {[%emt 0:00:00]} Kd6 {[%emt 0:00:00]} 56. Kd3 {[%emt 0:00:00]} Ra1 {[%emt 0:00:00]} 57. Kd4 {[%emt 0:00:00]} Re1 {[%emt 0:00:00]} 58. c5+ {[%emt 0:00:00]} Ke7 {[%emt 0:00:00]} 59. c6 {[%emt 0:00:00]} Kd8 {[%emt 0:02:03]} 60. Kc5 {[%emt 0:00:00]} Rc1+ {[%emt 0:00:32]} 61. Kd4 {[%emt 0:00:00]} Rd1+ {[%emt 0:03:05]} 62. Kc5 {[%emt 0:00:00]} Ke8 {[%emt 0:01:18]} 63. Nc4 {[%emt 0:00:00]} Ke7 {[%emt 0:01:00]} 64. Ne3 {[%emt 0:00:00]} Rc1+ {[%emt 0:00:12]} 65. Kd4 {[%emt 0:00:00]} Kf6 {[%emt 0:00:50]} 66. Nc4 {[%emt 0:00:00]} Rd1+ {[%emt 0:01:07]} 67. Kc5 {[%emt 0:00:00]} Ke7 {[%emt 0:00:46]} 68. Ne3 {[%emt 0:00:00]} Rc1+ {[%emt 0:01:44]} 69. Kd4 {[%emt 0:00:00]} Kf6 {[%emt 0:00:44]} 70. Nc4 {[%emt 0:00:00]} Rf1 {[%emt 0:01:46]} 71. d6 {[%emt 0:00:00]} Rd1+ {[%emt 0:00:25]} 72. Kc3 {[%emt 0:00:00]} Rc1+ {[%emt 0:00:45]} 73. Kd3 {[%emt 0:00:00]} Rd1+ {[%emt 0:00:07]} 74. Kc2 {[%emt 0:00:00]} Rd4 {[%emt 0:01:01]} 75. Kc3 {[%emt 0:00:00]} Re4 {[%emt 0:00:19]} 76. dxc7 {[%emt 0:00:00]} 1-0

[Event "Marienbad A1-GM 2024"]
[Site "Marianske Lazne"]
[Date "2024.01.14"]
[Round "2.5"]
[White "Pang, Tao"]
[Black "Natsidis, Christoph"]
[Result "1/2-1/2"]
[ECO "D37"]
[WhiteElo "2430"]
[BlackElo "2324"]
[Annotator "RC"]
[PlyCount "104"]
[EventDate "2024.01.10"]
[EventType "tourn"]
[EventCountry "CZE"]
[SourceTitle "playchess.com"]
[Source "ChessBase"]
[SourceQuality "1"]
[TimeControl "40/5400+30:1800+30"]

1. d4 {[%emt 0:00:03]} d5 {[%emt 0:00:13]} 2. c4 {[%emt 0:00:12]} e6 {[%emt 0:00:14]} 3. Nf3 {[%emt 0:00:17]} Nf6 {[%emt 0:00:06]} 4. Nc3 {[%emt 0:00:16]} dxc4 {[%emt 0:00:23]} 5. e4 {[%emt 0:02:46]} b5 {[%emt 0:00:16]} 6. e5 {[%emt 0:01:29]} Nd5 {[%emt 0:00:05]} 7. Nxb5 {[%emt 0:00:14]} Nb6 {[%emt 0:00:05]} 8. Be2 {[%emt 0:03:17]} Nc6 {[%emt 0:03:48]} 9. O-O {[%emt 0:00:56]} Rb8 {[%emt 0:06:15]} 10. Be3 {[%emt 0:08:28]} Be7 {[%emt 0:06:46]} 11. Qc1 {[%emt 0:10:47]} O-O {[%emt 0:15:15]} 12. Rd1 {[%emt 0:02:20]} Nb4 {[%emt 0:01:54]} 13. Na3 {[%emt 0:26:37]} Nd3 {[%emt 0:10:02]} 14. Bxd3 {[%emt 0:00:08]} cxd3 {[%emt 0:00:03]} 15. Rxd3 {[%emt 0:02:44]} Bb7 {[%emt 0:02:11]} 16. Bg5 {[%emt 0:01:33]} Bxg5 {[%emt 0:21:51]} 17. Nxg5 {[%emt 0:00:16]} h6 {[%emt 0:05:11]} 18. Nh3 {[%emt 0:01:24]} c5 {[%emt 0:04:25]} 19. Nb5 {[%emt 0:08:21]} Ba6 {[%emt 0:03:07]} 20. Rg3 {[%emt 0:01:29]} Kh8 {[%emt 0:04:49]} 21. Nd6 {[%emt 0:04:01]} cxd4 {[%emt 0:00:54]} 22. Qf4 {[%emt 0:06:08]} d3 {[%emt 0:03:45]} 23. Nxf7+ {[%emt 0:04:02]} Rxf7 {[%emt 0:00:04]} 24. Qxf7 {[%emt 0:00:03]} Rb7 {[%emt 0:00:02]} 25. Qh5 {[%emt 0:00:58]} Nd5 {[%emt 0:05:19]} 26. Ng5 {[%emt 0:08:41]} Nf4 {[%emt 0:02:40]} 27. Nf7+ {[%emt 0:00:16]} Rxf7 {[%emt 0:00:05]} 28. Qxf7 {[%emt 0:00:01]} Ne2+ {[%emt 0:00:09]} 29. Kh1 {[%emt 0:00:06]} Nxg3+ {[%emt 0:00:06]} 30. hxg3 {[%emt 0:00:09]} d2 {[%emt 0:00:17]} 31. Qf3 {[%emt 0:00:33]} Bb7 {[%emt 0:01:07]} 32. Qb3 {[%emt 0:03:15]} Ba6 {[%emt 0:01:39]} 33. Qf3 {[%emt 0:02:35]} Bd3 {[%emt 0:01:15]} 34. Qd1 {[%emt 0:00:18]} Ba6 {[%emt 0:00:08]} 35. a4 {[%emt 0:01:31]} Qd4 {[%emt 0:00:30]} 36. Qc2 {[%emt 0:01:31]} Be2 {[%emt 0:00:26]} 37. Qc8+ {[%emt 0:00:02]} Kh7 {[%emt 0:00:05]} 38. Qc2+ {[%emt 0:00:01]} Kh8 {[%emt 0:01:28]} 39. Qc8+ {[%emt 0:00:01]} Kh7 {[%emt 0:00:09]} 40. Qc2+ {[%emt 0:00:01]} Kg8 {[%emt 0:00:59]} 41. Qc8+ {[%emt 0:31:43]} Kf7 {[%emt 0:31:35]} 42. Qc7+ {[%emt 0:00:06]} Kf8 {[%emt 0:00:00]} 43. Qb8+ {[%emt 0:00:00]} Ke7 {[%emt 0:00:00]} 44. f4 {[%emt 0:00:00]} d1=Q+ {[%emt 0:00:00]} 45. Rxd1 {[%emt 0:00:00]} Qxd1+ {[%emt 0:00:00]} 46. Kh2 {[%emt 0:00:00]} Qxa4 {[%emt 0:00:00]} 47. Qg8 {[%emt 0:00:00]} Qe8 {[%emt 0:00:00]} 48. Qxg7+ {[%emt 0:00:00]} Qf7 {[%emt 0:00:00]} 49. Qxh6 {[%emt 0:00:00]} Qh5+ {[%emt 0:00:25]} 50. Qxh5 {[%emt 0:00:00]} Bxh5 {[%emt 0:00:05]} 51. Kh3 {[%emt 0:00:00]} Be2 {[%emt 0:00:10]} 52. g4 {[%emt 0:00:00]} Kf7 {[%emt 0:00:34]} 1/2-1/2

[Event "Marienbad A1-GM 2024"]
[Site "Marianske Lazne"]
[Date "2024.01.15"]
[Round "3.1"]
[White "Natsidis, Christoph"]
[Black "Kusa, Jakub"]
[Result "1/2-1/2"]
[ECO "D30"]
[WhiteElo "2324"]
[BlackElo "2350"]
[Annotator "ChessBase"]
[PlyCount "57"]
[EventDate "2024.01.10"]
[EventType "tourn"]
[EventCountry "CZE"]
[SourceTitle "playchess.com"]
[Source "ChessBase"]
[SourceQuality "1"]
[TimeControl "40/5400+30:1800+30"]

1. d4 {[%emt 0:00:09]} d5 {[%emt 0:00:28]} 2. c4 {[%emt 0:00:05]} e6 {[%emt 0:00:07]} 3. Nf3 {[%emt 0:00:03]} h6 {[%emt 0:00:37]} 4. Nc3 {[%emt 0:00:49]} Nf6 {[%emt 0:00:41]} 5. e3 {[%emt 0:07:53]} Be7 {[%emt 0:01:52]} 6. Bd3 {[%emt 0:00:05]} O-O {[%emt 0:01:48]} 7. O-O {[%emt 0:00:04]} c5 {[%emt 0:06:09]} 8. dxc5 {[%emt 0:17:20]} Bxc5 {[%emt 0:00:36]} 9. a3 {[%emt 0:02:52]} Nc6 {[%emt 0:01:15]} 10. b4 {[%emt 0:02:21]} Bd6 {[%emt 0:01:10]} 11. Bb2 {[%emt 0:11:42]} a6 {[%emt 0:05:11]} 12. cxd5 {[%emt 0:10:02]} exd5 {[%emt 0:00:09]} 13. Ne2 {[%emt 0:00:10]} Ne4 {[%emt 0:05:17]} 14. Ned4 {[%emt 0:08:02]} Ne5 15. Nxe5 {[%emt 0:04:46]} Bxe5 {[%emt 0:07:47]} 16. Qh5 {[%emt 0:03:49]} Re8 {[%emt 0:03:16]} 17. Rad1 {[%emt 0:06:59]} Nf6 {[%emt 0:03:49]} 18. Qe2 {[%emt 0:01:19]} Bg4 {[%emt 0:01:28]} 19. f3 {[%emt 0:01:03]} Bd7 {[%emt 0:01:36]} 20. Qf2 {[%emt 0:00:56]} Qc7 {[%emt 0:02:15]} 21. Qh4 {[%emt 0:03:43]} Qb6 {[%emt 0:05:24]} 22. Kh1 {[%emt 0:03:22]} Rac8 {[%emt 0:02:40]} 23. g4 {[%emt 0:02:33]} Bb5 {[%emt 0:04:32]} 24. Bxb5 {[%emt 0:01:02]} axb5 {[%emt 0:00:14]} 25. g5 {[%emt 0:02:47]} hxg5 {[%emt 0:01:59]} 26. Qxg5 {[%emt 0:00:04]} Nh7 {[%emt 0:03:50]} 27. Qg2 {[%emt 0:01:33]} g6 {[%emt 0:04:33]} 28. f4 {[%emt 0:05:13]} Bg7 {[%emt 0:00:09]} 29. f5 {[%emt 0:00:50]} 1/2-1/2

[Event "Marienbad A1-GM 2024"]
[Site "Marianske Lazne"]
[Date "2024.01.15"]
[Round "3.2"]
[White "Stein, Robert"]
[Black "Pang, Tao"]
[Result "1-0"]
[ECO "E04"]
[WhiteElo "2429"]
[BlackElo "2430"]
[Annotator "TA"]
[PlyCount "103"]
[EventDate "2024.01.10"]
[EventType "tourn"]
[EventCountry "CZE"]
[SourceTitle "playchess.com"]
[Source "ChessBase"]
[SourceQuality "1"]
[TimeControl "40/5400+30:1800+30"]

{[%evp 11,103,27,29,18,28,28,8,0,4,-20,-27,-62,-66,-54,-54,-80,-76,-98,-89,-91,-27,-47,-29,-83,-74,-89,-22,-70,-54,-125,-118,-123,-63,-117,-100,-122,-125,-122,-115,-115,-107,-121,-116,-111,-106,-122,-114,-113,-108,-119,-97,-115,-97,-97,0,-97,-94,-97,-15,-129,-114,-143,-137,-214,-193,-212,-175,-176,-193,-225,-101,-108,-61,-54,-72,-62,-62,-129,0,0,0,-20,0,0,527,517,509,501,1581,1131,29984,29985,29981,29982]} 1. d4 {[%emt 0:00:03]} d5 {[%emt 0:00:16]} 2. c4 {[%emt 0:00:08]} e6 {[%emt 0:00:22]} 3. Nf3 {[%emt 0:00:20]} Nf6 {[%emt 0:00:24]} 4. g3 {[%emt 0:00:16]} dxc4 {[%emt 0:00:31]} 5. Bg2 {[%emt 0:00:22]} Bb4+ {[%emt 0:01:04]} 6. Bd2 {[%emt 0:01:16]} a5 {[%emt 0:00:29]} 7. Qc2 {[%emt 0:01:46] E04: Open Catalan: 5 Nf3.} Bxd2+ {[%emt 0:00:47]} 8. Qxd2 {[%emt 0:00:23]} c6 {[%emt 0:01:55]} 9. Ne5 {[%emt 0:03:11] The position is equal.} b5 $1 {[%emt 0:01:34]} 10. a4 {[%emt 0:03:15] axb5 would be deadly.} Nd5 {[%emt 0:06:23]} 11. Nc3 {[%emt 0:03:53]} f6 {[%emt 0:03:04]} 12. Nf3 {[%emt 0:04:22] [#]} O-O $146 {[%emt 0:01:12]} ({Predecessor:} 12... Qb6 13. O-O O-O 14. e4 Nb4 15. axb5 cxb5 16. d5 e5 17. Kh1 N8a6 18. Ne1 Nc5 {0-1 Stigar,P (2225)-Skrondal,I (2258) NOR-chT 1415 2014 (3.2)}) 13. axb5 {[%emt 0:11:27]} Nxc3 {[%emt 0:01:05]} 14. bxc3 {[%emt 0:00:49]} cxb5 {[%emt 0:00:05]} 15. O-O {[%emt 0:08:06]} Ra7 {[%emt 0:09:03]} (15... a4 $17) 16. Rfb1 {[%emt 0:05:49]} Bd7 {[%emt 0:01:53]} 17. d5 {[%emt 0:10:09]} (17. Qe3 $11 {remains equal.}) 17... e5 $1 $17 {[%emt 0:03:31]} 18. Qe3 {[%emt 0:03:52]} Ra8 {[%emt 0:07:36]} (18... Ra6 $17) 19. Nd2 {[%emt 0:02:56]} (19. d6 $1 $11 {deserves consideration.} Bc6 20. Qc5) 19... a4 $1 $15 {[%emt 0:07:21]} 20. Ne4 {[%emt 0:08:56]} (20. d6 $15 Ra5 21. Rd1) 20... Na6 $17 {[%emt 0:01:44]} 21. d6 {[%emt 0:14:39]} Kh8 {[%emt 0:08:51]} (21... Rb8 $17 22. Nc5 Nxc5 23. Qxc5 Qa5) 22. Rd1 {[%emt 0:02:18]} (22. Nd2 $15) 22... Rb8 {[%emt 0:09:58]} 23. Nc5 {[%emt 0:03:08]} Nxc5 {[%emt 0:00:21]} 24. Qxc5 {[%emt 0:00:04]} Qb6 {[%emt 0:05:21]} 25. Qb4 {[%emt 0:00:14]} Rfc8 {[%emt 0:03:52]} 26. Rd5 {[%emt 0:01:01] Repels Qc5} Ra8 {[%emt 0:03:43]} 27. Qa3 {[%emt 0:00:41]} Kg8 {[%emt 0:01:38]} 28. Rb1 {[%emt 0:00:48][%cal Od5b5]} Rab8 {[%emt 0:01:36]} 29. Qb4 {[%emt 0:00:35]} Kf7 {[%emt 0:00:39]} 30. Rbd1 {[%emt 0:00:27]} g6 {[%emt 0:03:06]} 31. h4 {[%emt 0:01:36][%cal Og3g4]} Ra8 {[%emt 0:00:23]} 32. Qa3 {[%emt 0:00:29]} Rab8 {[%emt 0:03:01]} 33. Qb4 $1 {[%emt 0:00:06]} Qa7 {[%emt 0:00:11]} 34. Qa3 {[%emt 0:01:27]} Qa5 {[%emt 0:02:10]} (34... Kg7 $17) 35. Kh2 {[%emt 0:00:34]} (35. Rc5 $11 {keeps the balance.} Qd8 36. Qb4) 35... Qb6 {[%emt 0:00:24]} 36. Qc1 {[%emt 0:01:59]} Kg7 {[%emt 0:00:26] Against Qh6+} (36... Qxf2 $6 37. Qh6 Rg8 38. Rf1 Qxe2 39. Rd2 $11) 37. f4 {[%emt 0:00:17] [#]} (37. h5 $17) 37... e4 $1 $19 {[%emt 0:02:20][%mdl 512]} 38. R1d4 {[%emt 0:01:35]} f5 {[%emt 0:01:03]} 39. Re5 {[%emt 0:01:36]} Re8 {[%emt 0:01:31] ...b4 is the strong threat.} 40. Qd2 {[%emt 0:04:07]} Kf7 {[%emt 0:04:48] Dodges Re7+} (40... Rxe5 $19 {has better winning chances.} 41. fxe5 Re8) 41. g4 $17 {[%emt 0:08:35]} Rxe5 {[%emt 0:07:06]} ({Better is} 41... Qd8 $17 42. Re7+ Rxe7 43. dxe7 Kxe7) 42. fxe5 $15 {[%emt 0:00:14] Black must now prevent gxf5.} Qd8 $1 {[%emt 0:00:33]} (42... fxg4 $2 43. Qh6 Kg8 44. Bxe4 $18) 43. Qh6 {[%emt 0:03:43]} Qf8 $1 {[%emt 0:07:08]} (43... fxg4 {gets mated.} 44. Qxh7+ Ke6 45. Qxg6+ Kxe5 46. Rxe4+ Kd5 47. Re8+ (47. Rxg4+ Kc5 $16) 47... Kc5 48. Rxd8) 44. Qf4 {[%emt 0:06:49]} (44. Qxh7+ $2 Qg7 45. Qxg7+ Kxg7 $19) ({White should play} 44. Qg5 $1 $15) 44... Kg8 {[%emt 0:03:13]} (44... Kg7 $17 45. Qg3 Re8 46. gxf5 Qxf5) 45. gxf5 $1 $11 {[%emt 0:05:04]} gxf5 {[%emt 0:02:33] And now ...Qg7 would win.} 46. Rd1 {[%emt 0:04:51]} Re8 {[%emt 0:02:53] aiming for ...Qg7.} 47. Bh3 $1 {[%emt 0:02:40] Threatens to win with Rf1.} Kh8 $2 {[%emt 0:02:05][%mdl 8192] [#]} (47... Qf7 $11 {and Black stays safe.} 48. Rf1 Rf8) 48. e6 $1 $18 {[%emt 0:00:50][%mdl 512]} Rxe6 {[%emt 0:01:23] Hoping for ...Re8.} 49. Qxf5 {[%emt 0:00:07][%cal Rf5f8]} Qh6 {[%emt 0:04:24]} (49... Qxf5 $142 50. Bxf5 Rxd6 51. Rxd6 Bxf5) 50. Qg5 {[%emt 0:00:25]} Rxd6 {[%emt 0:01:38]} 51. Qd8+ {[%emt 0:00:39]} (51. Bxd7 $2 {is the wrong capture.} Qxg5 52. hxg5 Rxd1 $19) 51... Kg7 {[%emt 0:00:00]} 52. Qe7+ {[%emt 0:00:13] Quite a comeback for White.   Weighted Error Value: White=0.16 (very precise) /Black=0.35} 1-0

[Event "Marienbad A1-GM 2024"]
[Site "Marianske Lazne"]
[Date "2024.01.15"]
[Round "3.3"]
[White "Haba, Petr"]
[Black "Neuman, Petr"]
[Result "1/2-1/2"]
[ECO "C41"]
[WhiteElo "2437"]
[BlackElo "2398"]
[Annotator "ChessBase"]
[PlyCount "51"]
[EventDate "2024.01.10"]
[EventType "tourn"]
[EventCountry "CZE"]
[SourceTitle "playchess.com"]
[Source "ChessBase"]
[SourceQuality "1"]
[TimeControl "40/5400+30:1800+30"]

1. d4 {[%emt 0:00:16]} d6 {[%emt 0:00:05]} 2. e4 {[%emt 0:00:23]} Nf6 {[%emt 0:00:04]} 3. Nc3 {[%emt 0:00:06]} e5 {[%emt 0:00:04]} 4. Nf3 {[%emt 0:00:21]} Nbd7 {[%emt 0:00:04]} 5. Bc4 {[%emt 0:00:39]} Be7 {[%emt 0:00:05]} 6. O-O {[%emt 0:00:39]} O-O {[%emt 0:00:07]} 7. a4 {[%emt 0:00:56]} c6 {[%emt 0:00:12]} 8. Re1 {[%emt 0:00:26]} b6 {[%emt 0:00:16]} 9. Ba2 {[%emt 0:01:13]} a6 {[%emt 0:05:32]} 10. h3 {[%emt 0:00:32]} Rb8 {[%emt 0:00:10]} 11. Be3 {[%emt 0:00:47]} b5 {[%emt 0:01:26]} 12. axb5 {[%emt 0:00:12]} axb5 {[%emt 0:00:05]} 13. b4 {[%emt 0:00:43]} Bb7 {[%emt 0:16:53]} 14. Rb1 {[%emt 0:25:37]} Ra8 {[%emt 0:04:50]} 15. Bb3 {[%emt 0:03:02]} Qc7 {[%emt 0:18:48]} 16. Nh4 {[%emt 0:11:32]} g6 {[%emt 0:01:36]} 17. Bh6 {[%emt 0:01:17]} Rfe8 {[%emt 0:00:10]} 18. Nf3 {[%emt 0:00:51]} Bf8 {[%emt 0:02:38]} 19. Qd2 {[%emt 0:06:13]} Bg7 {[%emt 0:01:33]} 20. Rbd1 {[%emt 0:02:34]} Re7 {[%emt 0:04:10]} 21. dxe5 {[%emt 0:16:13]} dxe5 {[%emt 0:05:11]} 22. Qg5 {[%emt 0:00:38]} Bxh6 {[%emt 0:02:14]} 23. Qxh6 {[%emt 0:00:02]} Nf8 {[%emt 0:00:12]} 24. Ng5 {[%emt 0:06:42]} Nh5 {[%emt 0:04:52]} 25. Rd3 {[%emt 0:02:05]} Kh8 {[%emt 0:00:56]} 26. g3 {[%emt 0:05:04]} 1/2-1/2

[Event "Marienbad A1-GM 2024"]
[Site "Marianske Lazne"]
[Date "2024.01.15"]
[Round "3.4"]
[White "Haring, Filip"]
[Black "Samani, Yamac"]
[Result "1-0"]
[ECO "B30"]
[WhiteElo "2432"]
[BlackElo "2380"]
[Annotator "ChessBase"]
[PlyCount "69"]
[EventDate "2024.01.10"]
[EventType "tourn"]
[EventCountry "CZE"]
[SourceTitle "playchess.com"]
[Source "ChessBase"]
[SourceQuality "1"]
[TimeControl "40/5400+30:1800+30"]

1. e4 {[%emt 0:00:14]} c5 {[%emt 0:00:36]} 2. Nf3 {[%emt 0:00:11]} Nc6 {[%emt 0:00:07]} 3. Bb5 {[%emt 0:00:41]} e5 {[%emt 0:00:25]} 4. O-O {[%emt 0:01:10]} Be7 {[%emt 0:00:12]} 5. Nc3 {[%emt 0:03:13]} d6 {[%emt 0:01:11]} 6. a4 {[%emt 0:06:48]} Nf6 {[%emt 0:00:51]} 7. Re1 {[%emt 0:04:45]} O-O {[%emt 0:00:56]} 8. d3 {[%emt 0:01:03]} Nd4 {[%emt 0:01:49]} 9. Nd2 {[%emt 0:10:02]} Bg4 {[%emt 0:04:29]} 10. f3 {[%emt 0:00:47]} Be6 {[%emt 0:00:40]} 11. Bc4 {[%emt 0:09:10]} Nh5 {[%emt 0:03:33]} 12. Nf1 Bg5 13. Ne3 {[%emt 0:08:50]} Nf4 {[%emt 0:17:45]} 14. Ncd5 Bh4 {[%emt 0:12:39]} 15. g3 {[%emt 0:05:10]} Nh3+ {[%emt 0:05:47]} 16. Kg2 {[%emt 0:04:11]} Ng5 {[%emt 0:07:25]} 17. Rf1 {[%emt 0:00:21]} Bh3+ {[%emt 0:02:40]} 18. Kh1 {[%emt 0:00:06]} Bxf1 {[%emt 0:02:07]} 19. Qxf1 {[%emt 0:04:23]} Bxg3 {[%emt 0:09:21]} 20. hxg3 {[%emt 0:00:42]} Ndxf3 {[%emt 0:00:23]} 21. Nf5 {[%emt 0:01:36]} Re8 {[%emt 0:03:03]} 22. Kg2 {[%emt 0:06:48]} Re6 {[%emt 0:01:43]} 23. Be3 {[%emt 0:03:18]} Kh8 {[%emt 0:02:42]} 24. c3 {[%emt 0:05:00]} Qd7 {[%emt 0:04:04]} 25. Bb5 {[%emt 0:03:24]} Qc8 {[%emt 0:00:58]} 26. Qh1 {[%emt 0:01:48]} a6 {[%emt 0:01:16]} 27. Bc4 {[%emt 0:01:25]} b5 {[%emt 0:01:40]} 28. axb5 {[%emt 0:06:08]} axb5 {[%emt 0:00:05]} 29. Nb6 {[%emt 0:01:01]} Rxa1 {[%emt 0:00:50]} 30. Qxa1 {[%emt 0:00:04]} Qf8 {[%emt 0:01:10]} 31. Bxe6 {[%emt 0:01:16]} fxe6 {[%emt 0:00:15]} 32. Bxg5 {[%emt 0:00:40]} Nxg5 {[%emt 0:00:18]} 33. Nd7 {[%emt 0:05:07]} Qd8 {[%emt 0:00:08]} 34. Nxd6 {[%emt 0:00:11]} h6 {[%emt 0:00:07]} 35. Qa7 {[%emt 0:00:27]} 1-0

[Event "Marienbad A1-GM 2024"]
[Site "Marianske Lazne"]
[Date "2024.01.15"]
[Round "3.5"]
[White "Baenziger, Fabian"]
[Black "Stefansson, Hannes"]
[Result "0-1"]
[ECO "D45"]
[WhiteElo "2414"]
[BlackElo "2498"]
[Annotator "TA"]
[PlyCount "64"]
[EventDate "2024.01.10"]
[EventType "tourn"]
[EventCountry "CZE"]
[SourceTitle "playchess.com"]
[Source "ChessBase"]
[SourceQuality "1"]
[TimeControl "40/5400+30:1800+30"]

{[%evp 12,64,17,18,27,20,16,22,19,22,22,23,24,24,24,25,14,16,23,11,13,9,9,8,8,0,0,0,0,0,0,0,0,0,0,0,0,-16,-13,-11,-3,-31,-31,-136,-139,-128,-119,-131,-104,-182,-182,-258,-259,-250,-249]} 1. d4 {[%emt 0:00:04]} d5 {[%emt 0:00:27]} 2. c4 {[%emt 0:00:19]} c6 {[%emt 0:00:49]} 3. Nf3 {[%emt 0:00:59]} Nf6 {[%emt 0:00:20]} 4. Nc3 {[%emt 0:00:35]} e6 {[%emt 0:00:18]} 5. e3 {[%emt 0:01:14]} a6 {[%emt 0:00:55]} 6. b3 {[%emt 0:01:10]} Bb4 {[%emt 0:00:54]} 7. Bd2 {[%emt 0:00:06]} Qe7 {[%emt 0:01:20] D45: Semi-Slav: 5 e3.} 8. Bd3 {[%emt 0:03:10][%cal Oa2a3]} O-O {[%emt 0:01:46]} 9. O-O {[%emt 0:00:46]} Nbd7 {[%emt 0:00:47] The position is equal.} 10. Qc2 {[%emt 0:08:30]} e5 $1 {[%emt 0:02:42] 10...e5 scores better than 10...h6.} 11. dxe5 {[%emt 0:01:15]} (11. Nxe5 {feels hotter.} Nxe5 12. dxe5 Qxe5 13. Nxd5 Nxd5 14. cxd5 Bxd2 15. Qxd2 Qxd5 16. Qc3) 11... Nxe5 {[%emt 0:00:24]} 12. Nxe5 {[%emt 0:00:34]} Qxe5 {[%emt 0:00:08] [#]} 13. Nxd5 $1 {[%emt 0:04:48]} Nxd5 {[%emt 0:00:47]} 14. cxd5 {[%emt 0:00:05][%mdl 64] Discovered Attack} Bxd2 {[%emt 0:00:13]} 15. Qxd2 {[%emt 0:00:05] And now dxc6 would win.} Qxd5 {[%emt 0:00:41] Hoping for ...Bf5.} 16. Qc2 {[%emt 0:04:16]} g6 {[%emt 0:02:10]} (16... h6 {with more complications.} 17. Qc3 Qd6 18. Rad1 Qc7) 17. Rad1 {[%emt 0:06:48][%cal Od3g6]} Qe5 {[%emt 0:02:17] [#]} 18. Be4 $146 {[%emt 0:12:26]} ({Predecessor:} 18. h3 Qe7 19. Qc3 Be6 20. Bc4 {½-½ Kuzubov,Y (2647)-Banusz,T (2612) SRB-chT Valjevo 2018 (8.2)}) 18... Qe7 {[%emt 0:05:18]} 19. Rd4 {[%emt 0:04:50]} Be6 {[%emt 0:01:38]} 20. Rfd1 {[%emt 0:00:07]} Rac8 {[%emt 0:02:00][%cal Ba8c8,Bc8c5,Bc5c4][%mdl 32]} 21. b4 {[%emt 0:15:37]} c5 {[%emt 0:05:57]} 22. bxc5 {[%emt 0:00:03]} Rxc5 {[%emt 0:00:16]} 23. Qd2 {[%emt 0:00:08]} Rc4 {[%emt 0:06:09]} 24. a4 {[%emt 0:12:53]} b5 {[%emt 0:03:52]} 25. axb5 {[%emt 0:00:12]} axb5 {[%emt 0:00:06][%cal Ba6b5,Bb5b4,Bb4b3,Bb3b2][%mdl 32]} 26. Qb2 {[%emt 0:17:14]} b4 {[%emt 0:02:11]} 27. Bb1 {[%emt 0:03:24]} (27. Rxc4 $15 Bxc4 28. Rd4) 27... Rxd4 $17 {[%emt 0:02:02]} 28. Qxd4 {[%emt 0:00:20]} Rc8 {[%emt 0:01:35]} 29. h3 {[%emt 0:01:14]} b3 {[%emt 0:01:05]} 30. Qb6 {[%emt 0:00:50]} (30. f4 $17) 30... Qf6 $19 {[%emt 0:01:19]} 31. Qa5 {[%emt 0:00:53]} (31. f4 {keeps fighting.}) 31... b2 {[%emt 0:00:29] [#] ...Bb3 is the strong threat.} 32. Qa3 {[%emt 0:00:05] Dodges Bb3} Kg7 {[%emt 0:01:14] Weighted Error Value: White=0.19 (very precise) /Black=0.02 (flawless)} 0-1